bitfinex/quotes_BTCUSD_20251205
["timestamp","ask_amount","ask_price","bid_price","bid_amount"]
[1764945785372,0.00161288,90320.0,90315.0,0.01107235]
[1764945785574,0.00161288,90320.0,90314.0,0.22144783]
[1764945785575,0.00161287,90316.0,90314.0,0.22144783]
[1764945785786,1e-08,90320.0,90319.0,0.22143734]
[1764945786219,0.00161288,90320.0,90317.0,0.23251201]
[1764945786423,0.02250362,90320.0,90319.0,0.018]
[1764945786615,0.56955138,90320.0,90319.0,0.018]
[1764945786823,0.56955138,90320.0,90278.0,0.33230499]
[1764945786824,0.01107517,90292.0,90279.0,0.01107677]
[1764945787083,0.02150361,90280.0,90279.0,0.01107677]
[1764945787271,0.323,90287.0,90284.0,0.01107615]
[1764945787484,0.323,90287.0,90285.0,0.22369522]
[1764945787713,0.02951229,90341.0,90325.0,0.01107113]
[1764945787714,0.323,90336.0,90325.0,0.01107113]
[1764945787928,0.00161287,90326.0,90323.0,0.01107137]
[1764945788373,0.00161287,90326.0,90322.0,0.01107149]
[1764945788374,0.02150361,90319.0,90318.0,0.01107199]
[1764945788620,0.00161287,90324.0,90318.0,0.01107199]
[1764945788621,0.00161287,90324.0,90323.0,0.22142754]
[1764945788837,0.00161287,90324.0,90321.0,0.23250247]
[1764945789063,0.00161287,90324.0,90311.0,0.22145544]
[1764945789064,0.323,90321.0,90311.0,0.22145544]
[1764945789272,0.03050361,90320.0,90317.0,0.01107211]
[1764945789476,0.01107174,90320.0,90307.0,0.01107333]
[1764945789688,0.03257658,90310.0,90302.0,0.01107395]
[1764945789894,0.03257658,90310.0,90260.0,0.91168398]
[1764945789895,0.01107395,90302.0,90289.0,0.01107554]
[1764945790105,0.02150361,90297.0,90296.0,0.01107468]
[1764945790311,0.323,90317.0,90316.0,0.01107223]
[1764945790528,0.323,90317.0,90305.0,0.01107358]
[1764945790529,0.323,90300.0,90260.0,0.00099999]
[1764945790743,0.01107701,90277.0,90264.0,0.01107861]
[1764945790966,0.02150361,90273.0,90265.0,0.00235848]
[1764945791177,0.02150361,90266.0,90264.0,0.00039945]
[1764945791392,0.02150361,90287.0,90277.0,0.01107701]
[1764945791630,1.12355131,90336.0,90264.0,0.00039945]
[1764945791631,0.0110764,90282.0,90264.0,0.00039945]
[1764945791837,0.0110775,90273.0,90264.0,0.00039945]
[1764945792065,0.323,90265.0,90264.0,0.00039945]
[1764945792481,0.341,90265.0,90264.0,0.00039945]
[1764945792684,0.36250361,90265.0,90264.0,0.00039945]
[1764945792894,0.41898,90265.0,90264.0,0.00039945]
[1764945793101,0.03950361,90265.0,90264.0,0.00039945]
[1764945793309,0.36250361,90265.0,90264.0,0.00039945]
[1764945793508,0.37250361,90265.0,90264.0,0.00039945]
[1764945794117,0.45048361,90265.0,90264.0,0.00039945]
[1764945794439,0.02161287,90265.0,90264.0,0.00039945]
[1764945794644,0.00361287,90265.0,90264.0,0.00039945]
[1764945794824,0.00161287,90265.0,90264.0,0.00039945]
[1764945795118,0.42409648,90265.0,90264.0,0.00039945]
[1764945795747,0.34611648,90265.0,90264.0,0.00039945]
[1764945796166,0.34811648,90265.0,90264.0,0.00039945]
[1764945796371,0.35461287,90265.0,90264.0,0.00039945]
[1764945796709,0.45209648,90265.0,90264.0,0.00039945]
[1764945796906,0.35911648,90265.0,90264.0,0.00039945]
[1764945797115,0.34911648,90265.0,90264.0,0.00039945]
[1764945797397,0.34361287,90265.0,90264.0,0.00139945]
[1764945797569,0.01761287,90265.0,90264.0,0.00139945]
[1764945797776,0.03911648,90265.0,90264.0,0.00139945]
[1764945798077,0.34261287,90265.0,90264.0,0.00139945]
[1764945798398,0.34811648,90265.0,90264.0,0.00039945]
[1764945798514,0.32661287,90265.0,90264.0,0.00039945]
[1764945798714,0.6476663,90265.0,90264.0,0.00039945]
[1764945799164,1.6810463,90265.0,90264.0,0.00039945]
[1764945799355,1.6329073,90265.0,90264.0,0.00039945]
[1764945799554,1.5152393,90265.0,90264.0,0.00039945]
[1764945800024,1.5132393,90265.0,90264.0,0.00039945]
[1764945800241,1.5172393,90265.0,90264.0,0.00039945]
[1764945800439,1.5152393,90265.0,90264.0,0.00039945]
[1764945801009,1.52543331,90265.0,90264.0,0.00039945]
[1764945801289,1.53443331,90265.0,90264.0,0.00139945]
[1764945801490,0.02311648,90265.0,90264.0,0.00039945]
[1764945801731,0.04111648,90265.0,90264.0,0.00039945]
[1764945801976,0.10659287,90265.0,90264.0,0.00139945]
[1764945802236,0.02861287,90265.0,90264.0,0.22297172]
[1764945802465,0.02861287,90265.0,90264.0,0.00139945]
[1764945802690,0.009,90265.0,90264.0,0.00316476]
[1764945802898,0.009,90265.0,90264.0,0.08048979]
[1764945802899,0.012,90265.0,90264.0,0.08048979]
[1764945803102,0.01189,90265.0,90264.0,0.08048979]
[1764945803482,0.01189,90265.0,90264.0,0.08132988]
[1764945803682,0.003,90265.0,90264.0,0.08144189]
[1764945803886,0.00023855,90279.0,90277.0,0.22154037]
[1764945804242,0.00023855,90279.0,90276.0,0.01107714]
[1764945804447,0.00023855,90279.0,90277.0,0.22153982]
[1764945805076,0.00023855,90279.0,90278.0,0.06252299]
[1764945805514,0.00123855,90279.0,90278.0,0.06252299]
[1764945805721,0.00074855,90279.0,90278.0,0.06252299]
[1764945806229,0.00074855,90279.0,90278.0,0.07909034]
[1764945806467,0.00074855,90279.0,90278.0,0.01656735]
[1764945806637,0.00074855,90279.0,90277.0,0.22153982]
[1764945807044,0.00174855,90279.0,90277.0,0.22153982]
[1764945807402,0.00074855,90279.0,90277.0,0.22153982]
[1764945808038,0.323,90277.0,90270.0,0.01107787]
[1764945808213,0.02311648,90279.0,90278.0,0.22153791]
[1764945808425,0.01107346,90306.0,90294.0,0.01107493]
[1764945808631,0.01107382,90303.0,90297.0,0.01107456]
[1764945808838,0.00161287,90303.0,90299.0,0.22148453]
[1764945809038,0.02311648,90303.0,90293.0,0.01107505]
[1764945809285,0.02150361,90291.0,90287.0,0.01107579]
[1764945809490,0.02150361,90283.0,90282.0,0.0110764]
[1764945809697,0.02150361,90283.0,90263.0,0.46114605]
[1764945809698,0.35557927,90288.0,90287.0,0.00039945]
[1764945809985,0.34611648,90288.0,90287.0,0.00039945]
[1764945810958,0.41948287,90288.0,90287.0,0.00039945]
[1764945811156,0.44098648,90288.0,90287.0,0.00039945]
[1764945811647,0.00161287,90288.0,90287.0,0.00039945]
[1764945811762,0.35068487,90302.0,90289.0,0.01107554]
[1764945812075,0.35068487,90302.0,90287.0,0.00039945]
[1764945812076,0.23341,90301.0,90296.0,0.01107468]
[1764945812283,0.323,90299.0,90296.0,0.23256571]
[1764945812698,0.02150361,90308.0,90306.0,0.01107346]
[1764945812902,0.02150361,90308.0,90300.0,0.01107419]
[1764945812903,0.018,90307.0,90304.0,0.23254607]
[1764945813100,0.22143993,90318.0,90289.0,0.5741955]
[1764945813101,0.02150361,90313.0,90310.0,0.23253238]
[1764945813320,0.018,90315.0,90308.0,0.01107321]
[1764945813513,0.01107346,90306.0,90298.0,0.01107444]
[1764945813882,0.01107346,90306.0,90303.0,0.01107382]
[1764945813883,0.323,90306.0,90303.0,0.01107382]
[1764945813998,0.03257682,90308.0,90301.0,0.01107407]
[1764945814201,0.002,90307.0,90305.0,0.22147167]
[1764945814416,0.002,90307.0,90306.0,0.22146922]
[1764945814825,0.002,90307.0,90305.0,0.22147167]
[1764945815019,0.002,90307.0,90305.0,0.22147044]
[1764945815020,0.02150361,90306.0,90305.0,0.22147044]
[1764945815471,0.323,90312.0,90309.0,0.01107309]
[1764945815647,0.01106966,90337.0,90328.0,0.01107076]
[1764945815648,0.22139383,90337.0,90328.0,0.01107076]
[1764945815847,0.018,90331.0,90325.0,0.01107113]
[1764945816108,0.323,90327.0,90316.0,0.01107223]
[1764945816309,0.323,90327.0,90211.0,0.05514978]
[1764945816310,0.0110737,90304.0,90280.0,0.5741955]
[1764945816634,0.0110737,90304.0,90270.0,0.00199998]
[1764945816635,0.02150361,90293.0,90287.0,0.01107579]
[1764945816815,0.00161287,90293.0,90287.0,0.01147524]
[1764945817020,0.02311648,90293.0,90291.0,0.22150372]
[1764945817224,0.02311648,90293.0,90289.0,0.01107554]
[1764945817456,0.323,90288.0,90287.0,0.00039945]
[1764945817670,0.34611648,90288.0,90287.0,0.00039945]
[1764945817887,0.44098648,90288.0,90287.0,0.00039945]
[1764945818117,0.02150361,90262.0,90256.0,0.00119564]
[1764945818352,0.02150361,90255.0,90247.0,0.0110807]
[1764945818503,0.02150361,90255.0,90253.0,0.22159776]
[1764945819334,0.02150361,90255.0,90253.0,0.22159777]
[1764945819551,0.00161287,90262.0,90261.0,0.22157964]
[1764945819763,0.34450361,90264.0,90263.0,0.22157473]
[1764945819764,0.323,90264.0,90263.0,0.22157473]
[1764945819992,0.323,90264.0,90261.0,0.2326578]
[1764945820198,0.323,90264.0,90262.0,0.22157614]
[1764945820403,0.02150361,90261.0,90258.0,0.23266408]
[1764945820618,0.018,90270.0,90235.0,0.018]
[1764945820619,0.02150361,90271.0,90269.0,0.011078]
[1764945820832,0.018,90270.0,90269.0,0.23263686]
[1764945821619,0.018,90270.0,90267.0,0.23263821]
[1764945821819,0.323,90286.0,90268.0,0.2226104]
[1764945822032,0.02150361,90282.0,90281.0,0.01107652]
[1764945822233,0.02150361,90279.0,90276.0,0.01107714]
[1764945822593,0.02150361,90279.0,90277.0,0.22153847]
[1764945822805,0.02150361,90285.0,90282.0,0.0110764]
[1764945823016,0.01107554,90289.0,90285.0,0.01107603]
[1764945823219,0.22151088,90290.0,90285.0,0.01107603]
[1764945823220,0.018,90290.0,90286.0,0.01107591]
[1764945823369,0.02150361,90288.0,90287.0,0.01107579]
[1764945823582,0.02150361,90288.0,90285.0,0.01107603]
[1764945823773,0.02150361,90288.0,90285.0,0.23259539]
[1764945823939,0.00161287,90290.0,90289.0,0.22151092]
[1764945824520,0.00161287,90290.0,90260.0,0.57519549]
[1764945824674,0.02150361,90276.0,90273.0,0.23262694]
[1764945824875,0.018,90279.0,90277.0,0.22153985]
[1764945825071,0.02961287,90279.0,90274.0,0.01107738]
[1764945825477,0.02150361,90274.0,90273.0,0.00011975]
[1764945825661,0.02311648,90274.0,90273.0,0.00011975]
[1764945826046,0.341,90279.0,90278.0,0.22153791]
[1764945826047,0.323,90279.0,90278.0,0.22153791]
[1764945826716,0.018,90282.0,90280.0,0.221533]
[1764945826943,0.02150361,90281.0,90278.0,0.01107689]
[1764945827370,0.02150361,90274.0,90273.0,0.01119725]
[1764945827709,0.02150361,90274.0,90273.0,0.00011975]
[1764945827909,0.44144361,90274.0,90273.0,0.00011975]
[1764945828114,0.34450361,90274.0,90273.0,0.00011975]
[1764945828316,0.41994,90274.0,90273.0,0.00011975]
[1764945828565,0.323,90251.0,90242.0,0.01108131]
[1764945828733,0.34450361,90251.0,90248.0,0.01108057]
[1764945828933,0.34450361,90251.0,90249.0,0.22160808]
[1764945829567,0.34450361,90251.0,90245.0,0.01108094]
[1764945829568,0.35558381,90251.0,90242.0,0.01108131]
[1764945829892,0.01108119,90243.0,90236.0,0.01108205]
[1764945830102,0.01108119,90243.0,90226.0,0.00160586]
[1764945830103,0.02150361,90240.0,90235.0,0.01108217]
[1764945830365,0.34450361,90240.0,90237.0,0.01280045]
[1764945830561,0.018,90248.0,90244.0,0.22161998]
[1764945830889,0.018,90248.0,90245.0,0.01108094]
[1764945831057,0.018,90248.0,90246.0,0.22161538]
[1764945831491,0.02150361,90247.0,90237.0,0.00171853]
[1764945831645,0.323,90247.0,90239.0,0.01108168]
[1764945831845,0.323,90247.0,90244.0,0.01108106]
[1764945832255,0.323,90247.0,90245.0,0.22161683]
[1764945832619,0.323,90247.0,90239.0,0.01108168]
[1764945832620,0.01107812,90268.0,90263.0,0.22157361]
[1764945832820,0.323,90257.0,90254.0,0.01107984]
[1764945833063,0.00161287,90257.0,90255.0,0.22159437]
[1764945833327,0.01811972,90268.0,90265.0,0.22156876]
[1764945833491,0.01811972,90268.0,90263.0,0.01107873]
[1764945833492,0.02150361,90266.0,90263.0,0.01107873]
[1764945833697,0.33407824,90267.0,90260.0,0.0110791]
[1764945833892,0.03081071,90268.0,90264.0,0.22157202]
[1764945833893,0.00161287,90266.0,90264.0,0.22157202]
[1764945834244,0.00161287,90266.0,90263.0,0.23265238]
[1764945834383,0.01111972,90268.0,90266.0,0.22156704]
[1764945834811,0.00011972,90268.0,90266.0,0.22156704]
[1764945835183,0.00011972,90268.0,90267.0,0.00051]
[1764945836556,0.00011972,90268.0,90267.0,0.06303299]
[1764945837169,0.00011972,90268.0,90266.0,0.22156704]
[1764945837372,0.00011972,90268.0,90267.0,0.00051]
[1764945837786,0.00011972,90268.0,90266.0,0.22156704]
[1764945838371,0.00011972,90268.0,90266.0,0.22356704]
[1764945838956,0.00011972,90268.0,90266.0,0.22156704]
[1764945839302,0.00111972,90268.0,90266.0,0.22356704]
[1764945839440,0.00111972,90268.0,90267.0,0.00237968]
[1764945839646,0.00111972,90268.0,90267.0,0.00186968]
[1764945840415,0.00111972,90268.0,90266.0,0.002]
[1764945840416,1.198223,90267.0,90266.0,0.002]
[1764945840632,1.198223,90267.0,90216.0,0.09898935]
[1764945840633,0.323,90245.0,90220.0,0.5741955]
[1764945840881,0.323,90245.0,90241.0,0.23270756]
[1764945840882,0.01796,90244.0,90241.0,0.23270756]
[1764945841033,0.323,90265.0,90237.0,0.01280045]
[1764945841034,0.35558296,90258.0,90251.0,0.0110802]
[1764945841245,0.23270126,90245.0,90242.0,0.0011071]
[1764945841443,0.00161287,90245.0,90242.0,0.01108131]
[1764945841843,0.01108156,90240.0,90237.0,0.00171853]
[1764945842053,0.02150361,90238.0,90237.0,0.00171853]
[1764945842256,0.01796,90238.0,90237.0,0.23743814]
[1764945842448,0.34096,90238.0,90237.0,0.00471853]
[1764945842641,0.01796,90238.0,90237.0,0.23743656]
[1764945843042,0.01108131,90242.0,90238.0,0.23271728]
[1764945843415,0.02150361,90240.0,90238.0,0.22163537]
[1764945843625,0.02311648,90242.0,90241.0,0.22162874]
[1764945843828,0.323,90246.0,90245.0,0.22161892]
[1764945844601,0.01656735,90270.0,90245.0,0.22161892]
[1764945844805,0.01796,90253.0,90245.0,0.22161892]
[1764945845013,0.323,90251.0,90237.0,0.01171853]
[1764945845356,0.22163366,90239.0,90237.0,0.01171853]
[1764945845568,0.40915648,90238.0,90237.0,0.01171853]
[1764945845828,0.40915648,90238.0,90197.0,0.00251]
[1764945845829,0.01108487,90213.0,90205.0,0.01108585]
[1764945846017,0.01108413,90219.0,90205.0,0.01108585]
[1764945846018,0.323,90214.0,90212.0,0.22169811]
[1764945846245,0.01796,90212.0,90206.0,0.01108573]
[1764945846421,0.01796,90212.0,90204.0,0.01108598]
[1764945846661,0.02150361,90209.0,90207.0,0.2327971]
[1764945846864,0.323,90214.0,90207.0,0.2327971]
[1764945846865,0.01796,90214.0,90213.0,0.22169753]
[1764945847084,0.323,90225.0,90221.0,0.01108389]
[1764945847257,0.323,90225.0,90224.0,0.2216705]
[1764945847258,0.32461287,90225.0,90224.0,0.2216705]
[1764945847483,0.01108377,90222.0,90206.0,0.01]
[1764945847670,0.02150361,90213.0,90212.0,0.2327841]
[1764945847866,0.03946361,90213.0,90210.0,0.23278813]
[1764945848072,0.03946361,90213.0,90180.0,0.57519549]
[1764945848073,0.02150361,90204.0,90203.0,0.22172211]
[1764945848225,0.323,90209.0,90207.0,0.22171202]
[1764945848461,0.323,90209.0,90204.0,0.23280492]
[1764945848659,0.323,90209.0,90199.0,0.23281787]
[1764945848660,0.02150361,90201.0,90199.0,0.23281787]
[1764945848885,0.01796,90200.0,90199.0,0.23281787]
[1764945849108,0.01796,90200.0,90197.0,0.23282272]
[1764945849314,0.02150361,90201.0,90197.0,0.01108684]
[1764945849485,0.03946361,90199.0,90197.0,0.01108684]
[1764945849693,0.03946361,90199.0,90196.0,0.23282628]
[1764945849694,0.02150361,90197.0,90196.0,0.23282628]
[1764945850664,0.00161287,90209.0,90208.0,0.22170982]
[1764945850914,0.02150361,90220.0,90216.0,0.0110845]
[1764945851133,0.33408401,90220.0,90216.0,0.0110845]
[1764945851369,0.01796,90219.0,90218.0,0.22168525]
[1764945851571,0.01796,90219.0,90217.0,0.01108438]
[1764945851821,0.01108438,90217.0,90210.0,0.01108524]
[1764945852194,0.01108438,90217.0,90196.0,0.01508696]
[1764945852195,0.01108635,90201.0,90196.0,0.01508696]
[1764945852409,0.38604,90219.0,90196.0,0.01508696]
[1764945852410,0.323,90206.0,90203.0,0.0110861]
[1764945852627,0.03258713,90224.0,90219.0,0.01108413]
[1764945852840,0.01796,90223.0,90221.0,0.23276028]
[1764945853046,0.23821637,90233.0,90221.0,0.23276028]
[1764945853047,0.02150361,90234.0,90227.0,0.01108315]
[1764945853263,0.02150361,90225.0,90210.0,0.00061918]
[1764945853472,0.01796,90233.0,90217.0,0.01108438]
[1764945853473,0.02150361,90218.0,90217.0,0.01108438]
[1764945853674,0.03946361,90218.0,90217.0,0.23276963]
[1764945853891,0.002,90219.0,90216.0,0.001]
[1764945854091,0.002,90219.0,90218.0,0.22168525]
[1764945854297,0.03496,90220.0,90218.0,0.22168525]
[1764945854503,0.03496,90220.0,90214.0,0.01108475]
[1764945854504,0.02150361,90232.0,90231.0,0.23273335]
[1764945854729,0.03946361,90232.0,90231.0,0.23273335]
[1764945854949,0.00161287,90238.0,90231.0,0.23273335]
[1764945854950,0.04508,90255.0,90252.0,0.01108008]
[1764945855152,0.01108106,90244.0,90210.0,0.00099999]
[1764945855356,0.01108106,90244.0,90203.0,1.10860552]
[1764945855357,0.02150361,90232.0,90231.0,0.01108266]
[1764945855765,0.02150361,90231.0,90229.0,0.01108291]
[1764945855968,0.02150361,90231.0,90229.0,0.23274079]
[1764945856194,0.323,90236.0,90235.0,0.22164348]
[1764945856424,0.323,90236.0,90230.0,0.01108278]
[1764945856425,0.22158585,90259.0,90252.0,0.22160173]
[1764945856602,0.22158585,90259.0,90247.0,0.0110807]
[1764945856603,0.02150361,90250.0,90249.0,0.01108045]
[1764945857186,0.02150361,90250.0,90248.0,0.22161053]
[1764945857435,0.01108057,90248.0,90244.0,0.23270213]
[1764945857566,0.02150361,90242.0,90241.0,0.23270968]
[1764945857788,0.02150361,90236.0,90235.0,0.23272349]
[1764945857991,0.02150361,90232.0,90231.0,0.22165331]
[1764945858396,0.323,90237.0,90236.0,0.22164103]
[1764945858615,0.323,90237.0,90231.0,0.23273597]
[1764945858616,0.22159022,90257.0,90252.0,0.22160173]
[1764945858825,0.22159022,90257.0,90250.0,0.01108033]
[1764945858826,0.01957287,90253.0,90251.0,0.22160384]
[1764945859035,0.00161287,90253.0,90251.0,0.22160384]
[1764945859245,0.01796,90252.0,90251.0,0.22160384]
[1764945859657,0.03258099,90274.0,90268.0,0.01107812]
[1764945859859,0.03258099,90274.0,90265.0,0.01107849]
[1764945859860,0.23263378,90271.0,90266.0,0.01107836]
[1764945860063,0.02150361,90265.0,90264.0,0.01107861]
[1764945860269,0.01107689,90278.0,90275.0,0.01107726]
[1764945860478,0.01107787,90270.0,90264.0,0.2215715]
[1764945860725,0.02150361,90265.0,90264.0,0.01107861]
[1764945860924,0.04508,90274.0,90269.0,0.23263572]
[1764945861099,0.01796,90273.0,90270.0,0.01107787]
[1764945861313,0.01796,90272.0,90271.0,0.01107775]
[1764945861514,0.34096,90272.0,90267.0,0.23264315]
[1764945861836,0.02150361,90268.0,90267.0,0.22156399]
[1764945862073,0.02150361,90268.0,90263.0,0.01107873]
[1764945862074,0.02150361,90268.0,90264.0,0.01207861]
[1764945862332,0.02150361,90268.0,90261.0,0.2326577]
[1764945862333,0.02150361,90258.0,90252.0,0.01108008]
[1764945862522,0.02150361,90258.0,90230.0,0.72324758]
[1764945862523,0.02150361,90240.0,90237.0,0.22163718]
[1764945862724,0.01796,90239.0,90237.0,0.01108192]
[1764945862872,0.02150361,90238.0,90237.0,0.01108192]
[1764945863208,0.01796,90238.0,90237.0,0.01108192]
[1764945863406,0.03946361,90238.0,90237.0,0.01108192]
[1764945864083,0.01796,90238.0,90237.0,0.01108192]
[1764945864292,0.323,90245.0,90242.0,0.01108131]
[1764945864507,0.323,90245.0,90244.0,0.22162138]
[1764945864915,0.0110791,90260.0,90238.0,0.221635]
[1764945864916,0.323,90257.0,90254.0,0.01107984]
[1764945865119,0.02150361,90251.0,90248.0,0.22161024]
[1764945865341,0.02150361,90251.0,90248.0,0.23269081]
[1764945865546,0.02150361,90241.0,90240.0,0.01108156]
[1764945865958,0.02150361,90241.0,90240.0,0.00011966]
[1764945866365,0.001,90245.0,90242.0,0.01108131]
[1764945866569,0.001,90245.0,90243.0,0.22162383]
[1764945866570,0.01796,90244.0,90243.0,0.22162383]
[1764945866992,0.02150361,90243.0,90242.0,0.01108131]
[1764945867193,0.01796,90244.0,90243.0,0.22162383]
[1764945867811,0.02150361,90250.0,90248.0,0.22161155]
[1764945868018,0.01107873,90263.0,90248.0,0.22161155]
[1764945868202,0.11662287,90249.0,90248.0,0.004]
[1764945868490,0.02150361,90241.0,90240.0,0.01120122]
[1764945868714,0.33408057,90248.0,90247.0,0.22161401]
[1764945868715,0.323,90248.0,90247.0,0.22161401]
[1764945868894,0.02150361,90246.0,90245.0,0.23269884]
[1764945869894,0.03065332,90249.0,90248.0,0.22161155]
[1764945869895,0.00161287,90249.0,90248.0,0.22161155]
[1764945870096,0.01953287,90249.0,90248.0,0.22161155]
[1764945870293,0.01953287,90249.0,90247.0,0.22161401]
[1764945870294,0.02150361,90248.0,90247.0,0.22161401]
[1764945870511,0.01953287,90249.0,90247.0,0.22161401]
[1764945870999,0.01953287,90249.0,90248.0,0.22161155]
[1764945871288,0.00161287,90249.0,90248.0,0.22161155]
[1764945871480,0.02150361,90246.0,90245.0,0.22161892]
[1764945871849,0.00161287,90249.0,90248.0,0.22161155]
[1764945872049,0.01953287,90249.0,90248.0,0.22161155]
[1764945872256,0.323,90247.0,90245.0,0.22161864]
[1764945872464,0.01108057,90248.0,90240.0,0.00011966]
[1764945872465,0.56613235,90241.0,90240.0,0.00011966]
[1764945872826,0.323,90241.0,90240.0,0.00011966]
[1764945873026,0.24313235,90241.0,90240.0,0.00011966]
[1764945873230,0.72545235,90241.0,90240.0,0.00011966]
[1764945873446,0.64167874,90241.0,90240.0,0.00011966]
[1764945873659,0.66318235,90241.0,90240.0,0.00011966]
[1764945874287,0.68110235,90241.0,90240.0,0.00011966]
[1764945874707,0.68310235,90241.0,90240.0,0.00011966]
[1764945875368,0.34650361,90241.0,90240.0,0.00011966]
[1764945875598,0.36442361,90241.0,90240.0,0.00011966]
[1764945877188,0.325,90241.0,90240.0,0.00011966]
[1764945877424,0.09,90242.0,90241.0,0.22162874]
[1764945877601,0.323,90241.0,90240.0,0.00011966]
[1764945877968,0.50382361,90241.0,90240.0,0.00011966]
[1764945878380,0.50382361,90241.0,90240.0,0.22175086]
[1764945878381,0.323,90241.0,90240.0,0.22175086]
[1764945878762,0.092,90242.0,90241.0,0.22162874]
[1764945879208,0.09,90242.0,90241.0,0.25008874]
[1764945879754,0.01792,90255.0,90241.0,0.25008874]
[1764945879755,0.323,90254.0,90253.0,0.22159928]
[1764945879974,0.02949882,90285.0,90266.0,0.22156736]
[1764945879975,0.02150361,90267.0,90266.0,0.22156736]
[1764945880188,0.05615738,90274.0,90273.0,0.22155018]
[1764945880189,0.02150361,90274.0,90273.0,0.22155018]
[1764945880417,0.02768825,90291.0,90288.0,0.01107566]
[1764945880619,0.02150361,90296.0,90295.0,0.01107481]
[1764945880846,0.0110753,90291.0,90283.0,0.22152485]
[1764945881048,0.34450361,90284.0,90279.0,0.01107677]
[1764945881257,0.323,90284.0,90282.0,0.22152633]
[1764945881463,0.0110753,90291.0,90287.0,0.01107579]
[1764945881667,0.01107566,90288.0,90285.0,0.22152002]
[1764945881878,0.00011977,90291.0,90288.0,0.01107566]
[1764945882053,0.00011977,90291.0,90288.0,0.2325877]
[1764945882193,0.02150361,90289.0,90288.0,0.01107566]
[1764945882395,0.02150361,90289.0,90287.0,0.22151513]
[1764945882621,0.00011977,90291.0,90290.0,0.22150847]
[1764945882820,0.00173264,90291.0,90289.0,0.22151092]
[1764945883029,0.00173264,90291.0,90285.0,0.01107603]
[1764945883030,0.00173264,90291.0,90249.0,0.01423]
[1764945883031,0.02150361,90267.0,90249.0,0.01423]
[1764945883241,0.01792,90266.0,90264.0,0.23264864]
[1764945883443,0.0325821,90265.0,90257.0,0.01107947]
[1764945883670,0.01107935,90258.0,90239.0,0.01792]
[1764945883889,0.02150361,90256.0,90255.0,0.01107971]
[1764945884092,0.00161287,90263.0,90259.0,0.23266341]
[1764945884295,0.00161287,90263.0,90255.0,0.01107971]
[1764945884296,0.02150361,90259.0,90255.0,0.01107971]
[1764945884597,0.00161287,90263.0,90261.0,0.22157796]
[1764945884772,0.02150361,90261.0,90258.0,0.01107935]
[1764945885028,0.02150361,90261.0,90259.0,0.2215841]
[1764945885208,0.00161287,90263.0,90260.0,0.0110791]
[1764945885573,0.00161287,90263.0,90261.0,0.22157912]
[1764945885813,0.00161287,90263.0,90261.0,0.22157826]
[1764945886014,0.002,90261.0,90260.0,0.0110791]
[1764945886194,0.002,90261.0,90260.0,0.23265979]
[1764945886437,0.002,90261.0,90260.0,0.24688979]
[1764945886641,0.002,90261.0,90260.0,0.26111979]
[1764945887058,0.002,90261.0,90258.0,0.02507935]
[1764945887284,0.002,90261.0,90258.0,0.014]
[1764945887545,0.34450361,90259.0,90258.0,0.014]
[1764945888118,0.34450361,90259.0,90256.0,0.22159141]
[1764945888119,0.02150361,90257.0,90256.0,0.22159141]
[1764945888321,0.02150361,90257.0,90255.0,0.01107971]
[1764945888322,0.02150361,90255.0,90254.0,0.23267439]
[1764945888529,0.02150361,90259.0,90257.0,0.23266861]
[1764945888731,0.002,90263.0,90262.0,0.22157718]
[1764945889072,0.01792,90265.0,90264.0,0.22157227]
[1764945889379,0.01803972,90265.0,90264.0,0.22157227]
[1764945889672,0.00011972,90265.0,90264.0,0.23580227]
[1764945889962,0.00011972,90265.0,90264.0,0.25003227]
[1764945890415,0.00011972,90265.0,90264.0,0.23580227]
[1764945890833,0.00011972,90265.0,90264.0,0.25003227]
[1764945891444,0.00211972,90265.0,90264.0,0.25003227]
[1764945891644,0.00211972,90265.0,90264.0,0.23580227]
[1764945892044,0.00011972,90265.0,90264.0,0.25003227]
[1764945892871,0.00511972,90265.0,90264.0,0.25103227]
[1764945893256,0.00011972,90265.0,90264.0,0.23580227]
[1764945893455,0.00011972,90265.0,90261.0,0.22157955]
[1764945893657,0.00011972,90265.0,90240.0,0.44425829]
[1764945893658,0.00011972,90265.0,90263.0,0.22157453]
[1764945893894,0.00011972,90265.0,90258.0,0.01107935]
[1764945893895,0.33581108,90265.0,90264.0,0.002]
[1764945894070,0.3462362,90265.0,90264.0,0.22357227]
[1764945894276,0.32773259,90265.0,90264.0,0.24057227]
[1764945895630,0.32773259,90265.0,90264.0,0.24257227]
[1764945895811,0.3492362,90265.0,90264.0,0.021]
[1764945896014,0.3462362,90265.0,90264.0,0.22357227]
[1764945896226,0.32473259,90265.0,90264.0,0.22357227]
[1764945896416,0.54730241,90265.0,90264.0,0.002]
[1764945896600,0.63107602,90265.0,90264.0,0.002]
[1764945896799,0.3923062,90265.0,90264.0,0.002]
[1764945897005,0.61387602,90265.0,90264.0,0.002]
[1764945897183,0.61487602,90265.0,90264.0,0.01]
[1764945897971,0.3472362,90265.0,90264.0,0.22957227]
[1764945898247,0.3671162,90265.0,90264.0,0.22957227]
[1764945898605,0.34561259,90265.0,90264.0,0.22957227]
[1764945899205,0.74152602,90265.0,90264.0,0.008]
[1764945899617,0.01108106,90244.0,90241.0,0.22342855]
[1764945899974,0.03938361,90247.0,90246.0,0.22161647]
[1764945900106,0.03258246,90262.0,90257.0,0.01107947]
[1764945900304,0.323,90263.0,90260.0,0.23266119]
[1764945900508,0.01111972,90265.0,90264.0,0.22157227]
[1764945900743,0.01111972,90265.0,90264.0,0.23580227]
[1764945900943,0.01111972,90265.0,90264.0,0.31255526]
[1764945901149,0.02959516,90307.0,90264.0,0.31255526]
[1764945901150,0.0276861,90298.0,90297.0,0.2214913]
[1764945901360,0.01107309,90309.0,90295.0,0.01107481]
[1764945901361,0.02150361,90306.0,90304.0,0.22147413]
[1764945901592,0.00039946,90306.0,90304.0,0.22147413]
[1764945901806,0.00039946,90306.0,90305.0,0.00622]
[1764945902008,0.00039946,90306.0,90305.0,0.00311]
[1764945902235,0.02150361,90305.0,90303.0,0.22147658]
[1764945902446,0.00039946,90306.0,90303.0,0.22147635]
[1764945902656,0.02150361,90304.0,90300.0,0.01107419]
[1764945902904,0.02150361,90304.0,90303.0,0.23254866]
[1764945903300,0.00039946,90306.0,90305.0,0.28710466]
[1764945903301,1e-08,90306.0,90305.0,0.28710466]
[1764945903503,0.02979516,90340.0,90305.0,0.28710466]
[1764945903504,0.0002,90340.0,90339.0,0.22138832]
[1764945903707,0.0002,90360.0,90339.0,0.22138832]
[1764945903708,0.09057,90383.0,90339.0,0.22138832]
[1764945903709,0.02959516,90396.0,90369.0,0.22131483]
[1764945903902,0.01106206,90399.0,90369.0,0.22402483]
[1764945903903,0.00031985,90370.0,90369.0,0.22402483]